[Event "Titled Tuesday Blitz April 18 Late 2023"]
[White "Rose, Felix"]
[Black "Marin Masis, Jose Esteban"]
[WhiteFideId "5105722"]
[BlackFideId "6508146"]
[WhiteElo "2039"]
[BlackElo "1838"]
[Result "0-1"]
[Round "04"]
[TimeControl "180+2"]
[Date "2023.04.18"]
[WhiteClock "0:00:09"]
[BlackClock "0:00:16"]

1. e4 {[%clk 0:03:00]}  c5 {[%clk 0:02:59]} 2. Nf3 {[%clk 0:03:00]}  Nc6 {[%clk 0:02:59]} 3. d4 {[%clk 0:03:00]}  cxd4 {[%clk 0:03:00]} 4. Nxd4 {[%clk 0:03:01]}  Nf6 {[%clk 0:03:00]} 5. Nc3 {[%clk 0:03:01]}  e5 {[%clk 0:03:01]} 6. Ndb5 {[%clk 0:03:01]}  d6 {[%clk 0:03:01]} 7. Bg5 {[%clk 0:02:59]}  a6 {[%clk 0:03:02]} 8. Na3 {[%clk 0:02:59]}  b5 {[%clk 0:03:02]} 9. Nd5 {[%clk 0:03:00]}  Be7 {[%clk 0:03:02]} 10. Bxf6 {[%clk 0:03:00]}  Bxf6 {[%clk 0:03:03]} 11. c3 {[%clk 0:03:00]}  O-O {[%clk 0:03:03]} 12. Nc2 {[%clk 0:03:01]}  Bg5 {[%clk 0:03:03]} 13. a4 {[%clk 0:03:01]}  bxa4 {[%clk 0:03:01]} 14. Rxa4 {[%clk 0:03:02]}  a5 {[%clk 0:03:01]} 15. Bc4 {[%clk 0:03:02]}  Be6 {[%clk 0:02:43]} 16. b3 {[%clk 0:02:53]}  Ne7 {[%clk 0:02:31]} 17. h4 {[%clk 0:02:39]}  Bh6 {[%clk 0:02:26]} 18. Nxe7+ {[%clk 0:02:20]}  Qxe7 {[%clk 0:02:25]} 19. Bd5 {[%clk 0:02:20]}  Ra7 {[%clk 0:01:49]} 20. Na3 {[%clk 0:02:18]}  Bd7 {[%clk 0:01:47]} 21. Rc4 {[%clk 0:02:09]}  Rc8 {[%clk 0:01:44]} 22. Rxc8+ {[%clk 0:02:07]}  Bxc8 {[%clk 0:01:44]} 23. Nc4 {[%clk 0:02:07]}  Bd7 {[%clk 0:01:29]} 24. Nxd6 {[%clk 0:02:03]}  Be6 {[%clk 0:01:18]} 25. Bxe6 {[%clk 0:01:59]}  Qxe6 {[%clk 0:01:17]} 26. Nc4 {[%clk 0:01:41]}  Rd7 {[%clk 0:01:04]} 27. Qa1 {[%clk 0:01:36]}  Qg4 {[%clk 0:00:56]} 28. O-O {[%clk 0:01:24]}  Qxh4 {[%clk 0:00:54]} 29. Qxa5 {[%clk 0:01:19]}  Bf4 {[%clk 0:00:51]} 30. Ra1 {[%clk 0:00:41]}  g6 {[%clk 0:00:30]} 31. Kf1 {[%clk 0:00:22]}  Qh1+ {[%clk 0:00:29]} 32. Ke2 {[%clk 0:00:22]}  Qxg2 {[%clk 0:00:27]} 33. Qa8+ {[%clk 0:00:19]}  Kg7 {[%clk 0:00:27]} 34. Qc6 {[%clk 0:00:13]}  Qg4+ {[%clk 0:00:27]} 35. Kf1 {[%clk 0:00:12]}  Qh3+ {[%clk 0:00:26]} 36. Ke2 {[%clk 0:00:13]}  Qd3+ {[%clk 0:00:26]} 37. Ke1 {[%clk 0:00:13]}  Bd2+ {[%clk 0:00:26]} 38. Nxd2 {[%clk 0:00:14]}  Qxd2+ {[%clk 0:00:27]} 39. Kf1 {[%clk 0:00:14]}  Qd3+ {[%clk 0:00:27]} 40. Kg2 {[%clk 0:00:15]}  Rd6 {[%clk 0:00:27]} 41. Qc7 {[%clk 0:00:13]}  Qxe4+ {[%clk 0:00:27]} 42. Kg1 {[%clk 0:00:14]}  Rf6 {[%clk 0:00:26]} 43. Qc4 {[%clk 0:00:13]}  Qf3 {[%clk 0:00:23]} 44. Qf1 {[%clk 0:00:12]}  Rf4 {[%clk 0:00:22]} 45. Qb5 {[%clk 0:00:06]}  Rg4+ {[%clk 0:00:22]} 46. Kf1 {[%clk 0:00:06]}  Qh3+ {[%clk 0:00:21]} 47. Ke2 {[%clk 0:00:06]}  Re4+ {[%clk 0:00:20]} 48. Kd2 {[%clk 0:00:06]}  Qh6+ {[%clk 0:00:20]} 49. Kc2 {[%clk 0:00:07]}  Qf4 {[%clk 0:00:18]} 50. Rd1 {[%clk 0:00:07]}  Qxf2+ {[%clk 0:00:18]} 51. Rd2 {[%clk 0:00:08]}  Qf5 {[%clk 0:00:17]} 52. Qd3 {[%clk 0:00:08]}  Rf4 {[%clk 0:00:16]} 53. Qxf5 {[%clk 0:00:09]}  Rxf5 {[%clk 0:00:15]} 54. b4 {[%clk 0:00:09]}  Rf6 {[%clk 0:00:15]} 55. b5 {[%clk 0:00:09]}  h5 {[%clk 0:00:15]} 56. c4 {[%clk 0:00:09]}  h4 {[%clk 0:00:16]} 57. c5 {[%clk 0:00:10]}  h3 {[%clk 0:00:16]} 58. c6 {[%clk 0:00:10]}  e4 {[%clk 0:00:16]} 59. c7 {[%clk 0:00:10]}  e3 {[%clk 0:00:16]} 60. c8=Q {[%clk 0:00:10]}  exd2 {[%clk 0:00:16]} 61. Kxd2 {[%clk 0:00:11]}  Rf2+ {[%clk 0:00:16]} 62. Ke3 {[%clk 0:00:11]}  h2 {[%clk 0:00:16]} 63. Qh3 {[%clk 0:00:11]}  Ra2 {[%clk 0:00:14]} 64. b6 {[%clk 0:00:10]}  Ra3+ {[%clk 0:00:15]} 65. Ke4 {[%clk 0:00:11]}  Rxh3 {[%clk 0:00:15]} 66. b7 {[%clk 0:00:12]}  Rb3 {[%clk 0:00:16]} 67. Kf4 {[%clk 0:00:09]}  Rxb7 {[%clk 0:00:16]} 0-1


[Site "https://www.chess.com"]

[Event "Titled Tuesday Blitz April 18 Late 2023"]
[White "Vargas Rodriguez, Wilver"]
[Black "Wang, Alexander J"]
[WhiteFideId "3509672"]
[BlackFideId "30955270"]
[WhiteElo "2224"]
[BlackElo "2299"]
[Result "1-0"]
[Round "04"]
[TimeControl "180+2"]
[Date "2023.04.18"]
[WhiteClock "0:01:47"]
[BlackClock "0:00:58"]

1. e4 {[%clk 0:03:00]}  c5 {[%clk 0:02:59]} 2. Nf3 {[%clk 0:03:00]}  d6 {[%clk 0:02:57]} 3. d4 {[%clk 0:03:00]}  cxd4 {[%clk 0:02:58]} 4. Nxd4 {[%clk 0:03:01]}  Nf6 {[%clk 0:02:58]} 5. Nc3 {[%clk 0:03:01]}  g6 {[%clk 0:02:58]} 6. Be2 {[%clk 0:02:57]}  Bg7 {[%clk 0:02:58]} 7. Be3 {[%clk 0:02:58]}  O-O {[%clk 0:02:57]} 8. O-O {[%clk 0:02:59]}  Nc6 {[%clk 0:02:54]} 9. Nb3 {[%clk 0:02:59]}  Ne5 {[%clk 0:02:51]} 10. f4 {[%clk 0:02:46]}  Neg4 {[%clk 0:02:29]} 11. Bd4 {[%clk 0:02:38]}  e5 {[%clk 0:02:18]} 12. fxe5 {[%clk 0:02:30]}  dxe5 {[%clk 0:02:19]} 13. Bc5 {[%clk 0:02:29]}  Qxd1 {[%clk 0:01:17]} 14. Raxd1 {[%clk 0:02:17]}  Re8 {[%clk 0:01:15]} 15. h3 {[%clk 0:02:07]}  Nh6 {[%clk 0:01:06]} 16. g4 {[%clk 0:02:04]}  g5 {[%clk 0:00:58]} 17. Bb5 {[%clk 0:01:47]} 1-0


[Site "https://www.chess.com"]

[Event "Titled Tuesday Blitz April 18 Late 2023"]
[White "Barria Santos, Jose Guilherme"]
[Black "Tyagi, Kushan"]
[WhiteFideId "1939300"]
[BlackFideId "2040069"]
[WhiteElo "2266"]
[BlackElo "2282"]
[Result "1-0"]
[Round "04"]
[TimeControl "180+2"]
[Date "2023.04.18"]
[WhiteClock "0:00:59"]
[BlackClock "0:00:28"]

1. e4 {[%clk 0:03:00]}  c5 {[%clk 0:02:57]} 2. Nf3 {[%clk 0:03:01]}  e6 {[%clk 0:02:53]} 3. d4 {[%clk 0:03:01]}  cxd4 {[%clk 0:02:54]} 4. Nxd4 {[%clk 0:03:01]}  a6 {[%clk 0:02:54]} 5. c4 {[%clk 0:03:00]}  Nf6 {[%clk 0:02:54]} 6. Nc3 {[%clk 0:03:00]}  Qc7 {[%clk 0:02:54]} 7. Be3 {[%clk 0:02:58]}  Bb4 {[%clk 0:02:50]} 8. Qc2 {[%clk 0:02:46]}  Bxc3+ {[%clk 0:02:48]} 9. bxc3 {[%clk 0:02:45]}  d6 {[%clk 0:02:47]} 10. Be2 {[%clk 0:02:43]}  Nbd7 {[%clk 0:02:46]} 11. Rb1 {[%clk 0:02:43]}  b6 {[%clk 0:02:37]} 12. O-O {[%clk 0:02:40]}  Bb7 {[%clk 0:02:37]} 13. f3 {[%clk 0:02:40]}  O-O {[%clk 0:02:36]} 14. a4 {[%clk 0:02:34]}  Rac8 {[%clk 0:02:35]} 15. Nb3 {[%clk 0:02:28]}  Bc6 {[%clk 0:02:19]} 16. a5 {[%clk 0:02:05]}  bxa5 {[%clk 0:02:05]} 17. Ra1 {[%clk 0:02:05]}  a4 {[%clk 0:02:05]} 18. Nd4 {[%clk 0:02:05]}  Ne5 {[%clk 0:01:49]} 19. Nxc6 {[%clk 0:02:02]}  Qxc6 {[%clk 0:01:48]} 20. Rxa4 {[%clk 0:02:02]}  Nfd7 {[%clk 0:01:34]} 21. Qa2 {[%clk 0:01:47]}  Nc5 {[%clk 0:01:32]} 22. Bxc5 {[%clk 0:01:39]}  Qxc5+ {[%clk 0:01:30]} 23. Kh1 {[%clk 0:01:39]}  Qe3 {[%clk 0:01:05]} 24. Rxa6 {[%clk 0:01:25]}  Qxc3 {[%clk 0:01:03]} 25. Rxd6 {[%clk 0:01:24]}  Nxc4 {[%clk 0:01:02]} 26. Bxc4 {[%clk 0:01:20]}  Rxc4 {[%clk 0:01:03]} 27. Rd7 {[%clk 0:01:19]}  h5 {[%clk 0:00:51]} 28. h3 {[%clk 0:01:17]}  Qe3 {[%clk 0:00:44]} 29. Rfd1 {[%clk 0:01:13]}  Kh7 {[%clk 0:00:34]} 30. Qxc4 {[%clk 0:01:12]}  Qf2 {[%clk 0:00:32]} 31. Rf1 {[%clk 0:01:07]}  Qg3 {[%clk 0:00:32]} 32. Qc7 {[%clk 0:01:01]}  Kg6 {[%clk 0:00:28]} 33. Qxg3+ {[%clk 0:00:59]} 1-0


[Site "https://www.chess.com"]

[Event "Titled Tuesday Blitz April 18 Late 2023"]
[White "StarkyNZ"]
[Black "Manfroi, Alexander Giannini"]
[BlackFideId "22739335"]
[WhiteElo "2270"]
[BlackElo "1618"]
[Result "1-0"]
[Round "04"]
[TimeControl "180+2"]
[Date "2023.04.18"]
[WhiteClock "0:01:57"]
[BlackClock "0:01:15"]

1. c4 {[%clk 0:03:00]}  c6 {[%clk 0:03:00]} 2. d4 {[%clk 0:03:00]}  d5 {[%clk 0:03:01]} 3. Nf3 {[%clk 0:03:01]}  Nf6 {[%clk 0:03:01]} 4. Nc3 {[%clk 0:03:01]}  a6 {[%clk 0:03:01]} 5. Bg5 {[%clk 0:02:59]}  h6 {[%clk 0:03:02]} 6. Bxf6 {[%clk 0:02:59]}  exf6 {[%clk 0:03:03]} 7. e3 {[%clk 0:02:57]}  Bb4 {[%clk 0:02:58]} 8. Qb3 {[%clk 0:02:56]}  Bxc3+ {[%clk 0:02:47]} 9. bxc3 {[%clk 0:02:56]}  dxc4 {[%clk 0:02:44]} 10. Bxc4 {[%clk 0:02:55]}  O-O {[%clk 0:02:43]} 11. O-O {[%clk 0:02:53]}  b5 {[%clk 0:02:43]} 12. Be2 {[%clk 0:02:52]}  Be6 {[%clk 0:02:39]} 13. Qc2 {[%clk 0:02:51]}  Qd7 {[%clk 0:02:37]} 14. Nd2 {[%clk 0:02:50]}  c5 {[%clk 0:02:33]} 15. a4 {[%clk 0:02:49]}  bxa4 {[%clk 0:02:24]} 16. Ne4 {[%clk 0:02:48]}  cxd4 {[%clk 0:02:17]} 17. cxd4 {[%clk 0:02:47]}  Nc6 {[%clk 0:02:09]} 18. Nc5 {[%clk 0:02:46]}  Qd6 {[%clk 0:02:03]} 19. Rxa4 {[%clk 0:02:42]}  a5 {[%clk 0:01:55]} 20. Rc1 {[%clk 0:02:35]}  Rfc8 {[%clk 0:01:54]} 21. Bf3 {[%clk 0:02:32]}  Bd5 {[%clk 0:01:47]} 22. e4 {[%clk 0:02:18]}  Nb4 {[%clk 0:01:38]} 23. Rxb4 {[%clk 0:02:16]}  Bxe4 {[%clk 0:01:26]} 24. Bxe4 {[%clk 0:02:06]}  axb4 {[%clk 0:01:22]} 25. Bxa8 {[%clk 0:02:06]}  Qc7 {[%clk 0:01:19]} 26. Bd5 {[%clk 0:02:04]}  Qd6 {[%clk 0:01:15]} 27. Qc4 {[%clk 0:02:00]}  Rd8 {[%clk 0:01:14]} 28. Bxf7+ {[%clk 0:01:59]}  Kf8 {[%clk 0:01:15]} 29. Ne6+ {[%clk 0:01:57]} 1-0


[Site "https://www.chess.com"]

[Event "Titled Tuesday Blitz April 18 Late 2023"]
[White "De Souza, Cristiano Gomes"]
[Black "Maranhao,Jose Renato Ruiz"]
[WhiteFideId "2151758"]
[BlackFideId "2135175"]
[WhiteElo "2068"]
[BlackElo "1970"]
[Result "1-0"]
[Round "04"]
[TimeControl "180+2"]
[Date "2023.04.18"]
[WhiteClock "0:00:14"]
[BlackClock "0:00:01"]

1. d4 {[%clk 0:03:00]}  d5 {[%clk 0:03:00]} 2. c4 {[%clk 0:03:00]}  c6 {[%clk 0:03:00]} 3. Nf3 {[%clk 0:02:59]}  Nf6 {[%clk 0:03:00]} 4. Nc3 {[%clk 0:02:59]}  e6 {[%clk 0:03:00]} 5. Bg5 {[%clk 0:02:58]}  Nbd7 {[%clk 0:03:00]} 6. e3 {[%clk 0:02:58]}  h6 {[%clk 0:03:00]} 7. Bh4 {[%clk 0:02:58]}  Be7 {[%clk 0:03:00]} 8. Rc1 {[%clk 0:02:57]}  O-O {[%clk 0:03:01]} 9. Bd3 {[%clk 0:02:57]}  b6 {[%clk 0:02:58]} 10. O-O {[%clk 0:02:56]}  Ba6 {[%clk 0:02:58]} 11. cxd5 {[%clk 0:02:56]}  Bxd3 {[%clk 0:02:57]} 12. Qxd3 {[%clk 0:02:57]}  cxd5 {[%clk 0:02:57]} 13. Bg3 {[%clk 0:02:57]}  a6 {[%clk 0:02:55]} 14. Ne2 {[%clk 0:02:54]}  Ne4 {[%clk 0:02:55]} 15. Nd2 {[%clk 0:02:52]}  Nxg3 {[%clk 0:02:54]} 16. hxg3 {[%clk 0:02:52]}  b5 {[%clk 0:02:52]} 17. Rc2 {[%clk 0:02:51]}  Nb6 {[%clk 0:02:51]} 18. b3 {[%clk 0:02:51]}  Qd7 {[%clk 0:02:50]} 19. Rfc1 {[%clk 0:02:52]}  Rfc8 {[%clk 0:02:49]} 20. Nf3 {[%clk 0:02:52]}  Rxc2 {[%clk 0:02:47]} 21. Rxc2 {[%clk 0:02:53]}  Rc8 {[%clk 0:02:47]} 22. Ne5 {[%clk 0:02:53]}  Qd8 {[%clk 0:02:47]} 23. Nf4 {[%clk 0:02:48]}  Rxc2 {[%clk 0:02:40]} 24. Qxc2 {[%clk 0:02:47]}  Qd6 {[%clk 0:02:21]} 25. f3 {[%clk 0:02:22]}  a5 {[%clk 0:02:14]} 26. Kf2 {[%clk 0:02:21]}  a4 {[%clk 0:02:13]} 27. Nc6 {[%clk 0:02:14]}  Bf6 {[%clk 0:02:05]} 28. Na7 {[%clk 0:02:06]}  axb3 {[%clk 0:01:41]} 29. axb3 {[%clk 0:02:04]}  Qb4 {[%clk 0:01:26]} 30. Nc8 {[%clk 0:01:57]}  Nd7 {[%clk 0:01:00]} 31. Nd3 {[%clk 0:01:52]}  Qa3 {[%clk 0:00:50]} 32. Nc5 {[%clk 0:01:22]}  Nxc5 {[%clk 0:00:49]} 33. dxc5 {[%clk 0:01:22]}  Qa1 {[%clk 0:00:49]} 34. c6 {[%clk 0:01:20]}  Bc3 {[%clk 0:00:49]} 35. Qe2 {[%clk 0:01:14]}  Qa6 {[%clk 0:00:40]} 36. Nd6 {[%clk 0:00:58]}  Qxc6 {[%clk 0:00:33]} 37. Nxb5 {[%clk 0:00:58]}  Bb4 {[%clk 0:00:27]} 38. Nd4 {[%clk 0:00:58]}  Qc1 {[%clk 0:00:25]} 39. f4 {[%clk 0:00:52]}  Qb1 {[%clk 0:00:21]} 40. g4 {[%clk 0:00:37]}  g6 {[%clk 0:00:20]} 41. Qb5 {[%clk 0:00:29]}  Bc3 {[%clk 0:00:20]} 42. Qe8+ {[%clk 0:00:15]}  Kg7 {[%clk 0:00:20]} 43. Nxe6+ {[%clk 0:00:15]}  fxe6 {[%clk 0:00:21]} 44. Qe7+ {[%clk 0:00:15]}  Kh8 {[%clk 0:00:16]} 45. Qf8+ {[%clk 0:00:14]}  Kh7 {[%clk 0:00:16]} 46. Qf7+ {[%clk 0:00:14]}  Bg7 {[%clk 0:00:17]} 47. Qxe6 {[%clk 0:00:14]}  Qxb3 {[%clk 0:00:16]} 48. f5 {[%clk 0:00:13]}  Qc2+ {[%clk 0:00:15]} 49. Kg3 {[%clk 0:00:13]}  gxf5 {[%clk 0:00:13]} 50. gxf5 {[%clk 0:00:13]}  Qe4 {[%clk 0:00:12]} 51. Qg6+ {[%clk 0:00:13]}  Kg8 {[%clk 0:00:11]} 52. Kf2 {[%clk 0:00:11]}  d4 {[%clk 0:00:08]} 53. exd4 {[%clk 0:00:11]}  Qxd4+ {[%clk 0:00:09]} 54. Kf3 {[%clk 0:00:11]}  Qd3+ {[%clk 0:00:07]} 55. Kg4 {[%clk 0:00:11]}  Qe2+ {[%clk 0:00:07]} 56. Kh3 {[%clk 0:00:11]}  Kh8 {[%clk 0:00:06]} 57. f6 {[%clk 0:00:10]}  Qe6+ {[%clk 0:00:06]} 58. g4 {[%clk 0:00:09]}  Bxf6 {[%clk 0:00:05]} 59. Qxh6+ {[%clk 0:00:09]}  Kg8 {[%clk 0:00:05]} 60. Qg6+ {[%clk 0:00:10]}  Kf8 {[%clk 0:00:05]} 61. Qf5 {[%clk 0:00:09]}  Qe3+ {[%clk 0:00:03]} 62. Kg2 {[%clk 0:00:09]}  Kg7 {[%clk 0:00:03]} 63. Qf3 {[%clk 0:00:10]}  Qd2+ {[%clk 0:00:02]} 64. Qf2 {[%clk 0:00:10]}  Qd5+ {[%clk 0:00:03]} 65. Qf3 {[%clk 0:00:10]}  Qa2+ {[%clk 0:00:04]} 66. Qf2 {[%clk 0:00:11]}  Qa8+ {[%clk 0:00:04]} 67. Qf3 {[%clk 0:00:11]}  Qh8 {[%clk 0:00:04]} 68. g5 {[%clk 0:00:11]}  Be5 {[%clk 0:00:03]} 69. Qf5 {[%clk 0:00:10]}  Qh2+ {[%clk 0:00:04]} 70. Kf3 {[%clk 0:00:11]}  Qg3+ {[%clk 0:00:04]} 71. Ke4 {[%clk 0:00:12]}  Bc7 {[%clk 0:00:04]} 72. Qd7+ {[%clk 0:00:12]}  Kg6 {[%clk 0:00:04]} 73. Qf5+ {[%clk 0:00:12]}  Kg7 {[%clk 0:00:03]} 74. Qf6+ {[%clk 0:00:13]}  Kg8 {[%clk 0:00:03]} 75. g6 {[%clk 0:00:13]}  Qg2+ {[%clk 0:00:02]} 76. Kf5 {[%clk 0:00:13]}  Qf3+ {[%clk 0:00:02]} 77. Ke6 {[%clk 0:00:14]}  Qe4+ {[%clk 0:00:01]} 78. Kd7 {[%clk 0:00:14]} 1-0


[Site "https://www.chess.com"]

[Event "Titled Tuesday Blitz April 18 Late 2023"]
[White "Govender, Kaedan"]
[Black "Antonio, Jorge Carlos"]
[WhiteFideId "14322072"]
[BlackFideId "113190"]
[WhiteElo "1961"]
[BlackElo "2247"]
[Result "0-1"]
[Round "04"]
[TimeControl "180+2"]
[Date "2023.04.18"]
[WhiteClock "0:02:20"]
[BlackClock "0:01:42"]

1. d4 {[%clk 0:03:00]}  d5 {[%clk 0:02:58]} 2. c4 {[%clk 0:03:00]}  c6 {[%clk 0:02:57]} 3. Nf3 {[%clk 0:02:59]}  Nf6 {[%clk 0:02:53]} 4. cxd5 {[%clk 0:03:00]}  cxd5 {[%clk 0:02:51]} 5. Nc3 {[%clk 0:03:01]}  Nc6 {[%clk 0:02:50]} 6. Bf4 {[%clk 0:03:01]}  a6 {[%clk 0:02:45]} 7. h3 {[%clk 0:03:02]}  g6 {[%clk 0:02:45]} 8. Qd2 {[%clk 0:03:01]}  Bg7 {[%clk 0:02:44]} 9. Bh6 {[%clk 0:03:00]}  O-O {[%clk 0:02:38]} 10. Bxg7 {[%clk 0:02:59]}  Kxg7 {[%clk 0:02:39]} 11. e3 {[%clk 0:02:59]}  Ne4 {[%clk 0:02:32]} 12. Qc2 {[%clk 0:02:59]}  f5 {[%clk 0:02:30]} 13. Bd3 {[%clk 0:02:51]}  Nb4 {[%clk 0:02:25]} 14. Qd1 {[%clk 0:02:47]}  Nxd3+ {[%clk 0:02:24]} 15. Qxd3 {[%clk 0:02:48]}  Bd7 {[%clk 0:02:21]} 16. Nxd5 {[%clk 0:02:44]}  Qa5+ {[%clk 0:02:14]} 17. Nc3 {[%clk 0:02:44]}  Bb5 {[%clk 0:02:10]} 18. Qc2 {[%clk 0:02:40]}  Rac8 {[%clk 0:02:04]} 19. Rc1 {[%clk 0:02:31]}  Rc7 {[%clk 0:01:58]} 20. Nd2 {[%clk 0:02:23]}  Nxc3 {[%clk 0:01:53]} 21. bxc3 {[%clk 0:02:24]}  Rfc8 {[%clk 0:01:50]} 22. c4 {[%clk 0:02:24]}  Rxc4 {[%clk 0:01:46]} 23. Qb2 {[%clk 0:02:22]}  Rxc1+ {[%clk 0:01:44]} 24. Qxc1 {[%clk 0:02:20]}  Rxc1# {[%clk 0:01:42]} 0-1


[Site "https://www.chess.com"]

[Event "Titled Tuesday Blitz April 18 Late 2023"]
[White "Indjic, Aleksandar"]
[Black "Firouzja, Alireza"]
[WhiteFideId "911925"]
[BlackFideId "12573981"]
[WhiteElo "2614"]
[BlackElo "2904"]
[Result "0-1"]
[Round "05"]
[TimeControl "180+2"]
[Date "2023.04.18"]
[WhiteClock "0:01:15"]
[BlackClock "0:00:51"]

1. d4 {[%clk 0:03:00]}  Nf6 {[%clk 0:02:58]} 2. c4 {[%clk 0:03:01]}  g6 {[%clk 0:02:58]} 3. Nc3 {[%clk 0:03:02]}  Bg7 {[%clk 0:02:59]} 4. Nf3 {[%clk 0:03:02]}  O-O {[%clk 0:02:59]} 5. h3 {[%clk 0:03:03]}  d6 {[%clk 0:02:55]} 6. g4 {[%clk 0:03:03]}  c5 {[%clk 0:02:49]} 7. d5 {[%clk 0:03:03]}  a6 {[%clk 0:02:47]} 8. a4 {[%clk 0:03:02]}  e6 {[%clk 0:02:47]} 9. Bg2 {[%clk 0:03:01]}  exd5 {[%clk 0:02:47]} 10. cxd5 {[%clk 0:03:02]}  Re8 {[%clk 0:02:46]} 11. Nd2 {[%clk 0:03:02]}  Nbd7 {[%clk 0:02:45]} 12. O-O {[%clk 0:03:00]}  h5 {[%clk 0:02:42]} 13. g5 {[%clk 0:02:59]}  Nh7 {[%clk 0:02:42]} 14. Nde4 {[%clk 0:02:58]}  Ne5 {[%clk 0:02:35]} 15. Qb3 {[%clk 0:02:45]}  Bf5 {[%clk 0:02:19]} 16. f4 {[%clk 0:02:40]}  c4 {[%clk 0:02:19]} 17. Qb4 {[%clk 0:02:28]}  Nd7 {[%clk 0:02:02]} 18. Qxc4 {[%clk 0:02:28]}  Qb6+ {[%clk 0:01:58]} 19. Kh2 {[%clk 0:02:12]}  Rac8 {[%clk 0:01:57]} 20. a5 {[%clk 0:02:03]}  Rxc4 {[%clk 0:01:53]} 21. axb6 {[%clk 0:02:02]}  Bxe4 {[%clk 0:01:54]} 22. Nxe4 {[%clk 0:02:00]}  Rcxe4 {[%clk 0:01:55]} 23. Bxe4 {[%clk 0:01:53]}  Rxe4 {[%clk 0:01:56]} 24. e3 {[%clk 0:01:53]}  Nxb6 {[%clk 0:01:56]} 25. Ra5 {[%clk 0:01:52]}  Nf8 {[%clk 0:01:48]} 26. Kg2 {[%clk 0:01:52]}  Nfd7 {[%clk 0:01:47]} 27. Kf3 {[%clk 0:01:52]}  Rb4 {[%clk 0:01:47]} 28. Rf2 {[%clk 0:01:52]}  Nc4 {[%clk 0:01:44]} 29. Ra2 {[%clk 0:01:50]}  Nc5 {[%clk 0:01:44]} 30. Rc2 {[%clk 0:01:50]}  b5 {[%clk 0:01:43]} 31. Bd2 {[%clk 0:01:35]}  Rxb2 {[%clk 0:01:15]} 32. Rcxb2 {[%clk 0:01:25]}  Nxb2 {[%clk 0:01:04]} 33. e4 {[%clk 0:01:23]}  Nbd3 {[%clk 0:00:58]} 34. Ba5 {[%clk 0:01:18]}  b4 {[%clk 0:00:56]} 35. e5 {[%clk 0:01:15]}  b3 {[%clk 0:00:51]} 0-1


[Site "https://www.chess.com"]

[Event "Titled Tuesday Blitz April 18 Late 2023"]
[White "Hakobyan, Aram"]
[Black "Xiong, Jeffery"]
[WhiteFideId "13306677"]
[BlackFideId "2047640"]
[WhiteElo "2584"]
[BlackElo "2726"]
[Result "1/2-1/2"]
[Round "05"]
[TimeControl "180+2"]
[Date "2023.04.18"]
[WhiteClock "0:00:08"]
[BlackClock "0:00:12"]

1. d4 {[%clk 0:03:00]}  d5 {[%clk 0:03:00]} 2. c4 {[%clk 0:03:01]}  e6 {[%clk 0:03:00]} 3. Nf3 {[%clk 0:03:00]}  dxc4 {[%clk 0:03:00]} 4. e3 {[%clk 0:03:01]}  Nf6 {[%clk 0:03:00]} 5. Bxc4 {[%clk 0:03:01]}  c5 {[%clk 0:03:01]} 6. O-O {[%clk 0:03:02]}  Nc6 {[%clk 0:03:01]} 7. Re1 {[%clk 0:02:58]}  h6 {[%clk 0:02:55]} 8. Nc3 {[%clk 0:02:57]}  Be7 {[%clk 0:02:46]} 9. Bd3 {[%clk 0:02:56]}  O-O {[%clk 0:02:44]} 10. a3 {[%clk 0:02:54]}  b6 {[%clk 0:02:32]} 11. dxc5 {[%clk 0:02:55]}  Bxc5 {[%clk 0:02:33]} 12. b4 {[%clk 0:02:55]}  Be7 {[%clk 0:02:33]} 13. Bb2 {[%clk 0:02:53]}  Bb7 {[%clk 0:02:33]} 14. Qc2 {[%clk 0:02:44]}  Rc8 {[%clk 0:02:33]} 15. Rad1 {[%clk 0:02:44]}  Qc7 {[%clk 0:02:34]} 16. Qb1 {[%clk 0:02:12]}  Rfd8 {[%clk 0:02:30]} 17. Ne4 {[%clk 0:02:12]}  Nxe4 {[%clk 0:01:53]} 18. Bxe4 {[%clk 0:02:12]}  Qb8 {[%clk 0:01:51]} 19. h3 {[%clk 0:02:05]}  a6 {[%clk 0:01:31]} 20. Rc1 {[%clk 0:01:39]}  Na7 {[%clk 0:01:30]} 21. Bh7+ {[%clk 0:01:35]}  Kf8 {[%clk 0:01:30]} 22. Be4 {[%clk 0:01:29]}  Rxc1 {[%clk 0:01:24]} 23. Rxc1 {[%clk 0:01:29]}  Rc8 {[%clk 0:01:21]} 24. Rxc8+ {[%clk 0:01:21]}  Bxc8 {[%clk 0:01:15]} 25. Qa1 {[%clk 0:01:20]}  f6 {[%clk 0:01:14]} 26. Nd4 {[%clk 0:01:14]}  Bd7 {[%clk 0:01:14]} 27. Qd1 {[%clk 0:01:08]}  Qd6 {[%clk 0:01:13]} 28. Qh5 {[%clk 0:00:59]}  Nb5 {[%clk 0:01:13]} 29. Bd3 {[%clk 0:00:20]}  Nxd4 {[%clk 0:01:12]} 30. exd4 {[%clk 0:00:21]}  Qf4 {[%clk 0:00:35]} 31. Bxa6 {[%clk 0:00:21]}  Bd6 {[%clk 0:00:35]} 32. g3 {[%clk 0:00:21]}  Qe4 {[%clk 0:00:34]} 33. Qe2 {[%clk 0:00:19]}  Qb1+ {[%clk 0:00:34]} 34. Kg2 {[%clk 0:00:18]}  Bc6+ {[%clk 0:00:34]} 35. f3 {[%clk 0:00:19]}  Bd5 {[%clk 0:00:33]} 36. Bd3 {[%clk 0:00:18]}  Qa2 {[%clk 0:00:31]} 37. Bc1 {[%clk 0:00:16]}  Qb3 {[%clk 0:00:22]} 38. Qc2 {[%clk 0:00:15]}  Qxc2+ {[%clk 0:00:19]} 39. Bxc2 {[%clk 0:00:16]}  Bc4 {[%clk 0:00:18]} 40. Bf4 {[%clk 0:00:15]}  Bxf4 {[%clk 0:00:18]} 41. gxf4 {[%clk 0:00:16]}  b5 {[%clk 0:00:18]} 42. h4 {[%clk 0:00:16]}  Ke7 {[%clk 0:00:17]} 43. Kf2 {[%clk 0:00:17]}  Kd6 {[%clk 0:00:18]} 44. Ke3 {[%clk 0:00:18]}  f5 {[%clk 0:00:18]} 45. Bd3 {[%clk 0:00:17]}  Kd5 {[%clk 0:00:19]} 46. Bc2 {[%clk 0:00:16]}  Kd6 {[%clk 0:00:14]} 47. Bb1 {[%clk 0:00:12]}  Kd5 {[%clk 0:00:14]} 48. Bd3 {[%clk 0:00:12]}  g6 {[%clk 0:00:08]} 49. Bc2 {[%clk 0:00:13]}  Kc6 {[%clk 0:00:08]} 50. Bb1 {[%clk 0:00:11]}  Kb6 {[%clk 0:00:08]} 51. Bd3 {[%clk 0:00:11]}  Bd5 {[%clk 0:00:08]} 52. Be2 {[%clk 0:00:11]}  Bc6 {[%clk 0:00:08]} 53. Kd2 {[%clk 0:00:11]}  Kc7 {[%clk 0:00:08]} 54. Kc3 {[%clk 0:00:12]}  Kd6 {[%clk 0:00:09]} 55. Bd1 {[%clk 0:00:12]}  Bd7 {[%clk 0:00:09]} 56. Kd3 {[%clk 0:00:09]}  Bc6 {[%clk 0:00:09]} 57. Be2 {[%clk 0:00:09]}  Bd7 {[%clk 0:00:10]} 58. Ke3 {[%clk 0:00:10]}  Bc6 {[%clk 0:00:10]} 59. Bd1 {[%clk 0:00:10]}  Bd7 {[%clk 0:00:11]} 60. Bc2 {[%clk 0:00:11]}  Bc6 {[%clk 0:00:11]} 61. Bb3 {[%clk 0:00:11]}  Bd7 {[%clk 0:00:12]} 62. Kd2 {[%clk 0:00:10]}  Bc6 {[%clk 0:00:12]} 63. Bd1 {[%clk 0:00:11]}  Bd7 {[%clk 0:00:13]} 64. Kc3 {[%clk 0:00:12]}  Bc6 {[%clk 0:00:13]} 65. Kb2 {[%clk 0:00:12]}  Bd7 {[%clk 0:00:14]} 66. a4 {[%clk 0:00:10]}  bxa4 {[%clk 0:00:15]} 67. Ka3 {[%clk 0:00:11]}  Bc6 {[%clk 0:00:15]} 68. Bxa4 {[%clk 0:00:11]}  Bxf3 {[%clk 0:00:15]} 69. b5 {[%clk 0:00:11]}  Kd5 {[%clk 0:00:14]} 70. Kb4 {[%clk 0:00:07]}  Kxd4 {[%clk 0:00:14]} 71. b6 {[%clk 0:00:08]}  Bb7 {[%clk 0:00:13]} 72. Bd7 {[%clk 0:00:08]}  e5 {[%clk 0:00:12]} 73. fxe5 {[%clk 0:00:09]}  Kxe5 {[%clk 0:00:12]} 74. Kc5 {[%clk 0:00:09]}  g5 {[%clk 0:00:13]} 75. Bc6 {[%clk 0:00:09]}  Bc8 {[%clk 0:00:11]} 76. Bd7 {[%clk 0:00:09]}  Bb7 {[%clk 0:00:11]} 77. Bc6 {[%clk 0:00:09]}  Bc8 {[%clk 0:00:11]} 78. Bd7 {[%clk 0:00:08]}  Bb7 {[%clk 0:00:12]} 1/2-1/2


[Site "https://www.chess.com"]